bitfinex/quotes_ETHUSD_20251214
["timestamp","ask_amount","ask_price","bid_price","bid_amount"]
[1765684564375,0.001,3120.5,3120.4,38.59148486]
[1765684564705,0.2795,3120.5,3120.4,38.59148486]
[1765684564997,0.2795,3120.5,3120.4,8.59148486]
[1765684565203,0.2795,3120.5,3120.4,38.59148486]
[1765684565498,0.2795,3120.5,3120.4,41.80108799]
[1765684567806,0.2775,3120.5,3120.4,41.80108799]
[1765684571211,0.2775,3120.5,3120.4,11.80108799]
[1765684571416,0.2775,3120.5,3120.4,38.59148486]
[1765684573320,0.2775,3120.5,3120.4,42.90447709]
[1765684574822,0.4662,3120.7,3120.6,30.0]
[1765684575017,0.001,3120.8,3120.6,34.81799223]
[1765684575226,0.4672,3120.8,3120.7,30.0]
[1765684575399,0.7437,3120.8,3120.7,30.12828962]
[1765684576414,0.7437,3120.8,3120.7,33.33269888]
[1765684581522,0.7437,3120.8,3120.7,3.33269888]
[1765684581726,0.7437,3120.8,3120.7,33.33269888]
[1765684584634,0.7437,3120.8,3120.7,3.33269888]
[1765684584810,0.7437,3120.8,3120.7,33.33269888]
[1765684586714,0.7437,3120.8,3120.7,3.33269888]
[1765684586922,0.7437,3120.8,3120.7,33.33269888]
[1765684591846,0.2775,3120.8,3120.7,33.33269888]
[1765684592140,0.2775,3120.8,3120.7,37.64528446]
[1765684592636,0.7418,3120.8,3120.7,37.64528446]
[1765684592807,0.2775,3120.8,3120.7,37.64528446]
[1765684595135,0.2775,3120.8,3120.7,7.64528446]
[1765684595337,0.2775,3120.8,3120.7,37.64528446]
[1765684598641,0.7418,3120.8,3120.7,4.22328962]
[1765684599465,0.7418,3120.8,3120.7,22.09369888]
[1765684600342,0.7418,3120.8,3120.7,33.33269888]
[1765684601213,0.7418,3120.8,3120.7,3.33269888]
[1765684601414,0.7418,3120.8,3120.7,33.33269888]
[1765684602238,0.7418,3120.8,3120.7,3.33269888]
[1765684602544,0.7418,3120.8,3120.7,33.33269888]
[1765684603342,0.7418,3120.8,3120.7,43.33269888]
[1765684603548,0.7418,3120.8,3120.7,33.33269888]
[1765684604319,0.7418,3120.8,3120.7,43.33269888]
[1765684604520,0.7418,3120.8,3120.7,33.33269888]
[1765684608948,0.2775,3120.8,3120.7,33.33269888]
[1765684609248,0.001,3120.8,3120.7,33.33269888]
[1765684609450,0.001,3120.8,3120.7,33.79209888]
[1765684610641,0.001,3120.8,3120.7,37.00170201]
[1765684611463,0.001,3120.8,3120.7,36.54230201]
[1765684611665,0.2794,3120.8,3120.7,33.33269888]
[1765684612556,0.2794,3120.8,3120.7,43.33269888]
[1765684612862,0.2794,3120.8,3120.7,33.33269888]
[1765684613750,0.001,3120.8,3120.7,33.33269888]
[1765684615163,0.001,3120.8,3120.7,33.79209888]
[1765684615369,0.001,3120.8,3120.7,34.25729539]
[1765684616367,0.001,3120.8,3120.7,34.83777068]
[1765684616552,0.001,3120.8,3120.7,35.32877068]
[1765684617564,0.001,3120.8,3120.7,34.83777068]
[1765684617766,0.001,3120.8,3120.7,44.83777068]
[1765684617938,0.001,3120.8,3120.7,34.83777068]
[1765684618364,0.001,3120.8,3120.7,35.73427468]
[1765684618752,0.001,3120.8,3120.7,45.73427468]
[1765684618955,0.001,3120.8,3120.7,35.73427468]
[1765684624448,0.001,3120.8,3120.7,34.37837068]
[1765684624449,0.2762,3120.8,3120.7,34.37837068]
[1765684624648,0.7428,3120.8,3120.7,38.69159121]
[1765684628978,0.7428,3120.8,3120.7,48.69159121]
[1765684629183,0.7428,3120.8,3120.7,38.69159121]
[1765684630056,0.7428,3120.8,3120.7,48.69159121]
[1765684630258,0.2762,3120.8,3120.7,38.69159121]
[1765684634877,0.2762,3120.8,3120.7,38.69087129]
[1765684635184,0.2762,3120.8,3120.7,48.69087129]
[1765684635386,0.2762,3120.8,3120.7,38.69087129]
[1765684640182,0.2762,3120.8,3120.7,8.69087129]
[1765684640372,0.2762,3120.8,3120.7,38.69087129]
[1765684641192,0.2762,3120.8,3120.7,8.69087129]
[1765684641397,0.2762,3120.8,3120.7,38.69087129]
[1765684642168,0.2762,3120.8,3120.7,8.69087129]
[1765684642383,0.2762,3120.8,3120.7,38.69087129]
[1765684643198,0.001,3120.8,3120.7,38.69087129]
[1765684643360,0.001,3120.8,3120.7,39.17497129]
[1765684645267,0.001,3120.8,3120.7,9.17497129]
[1765684645467,0.001,3120.8,3120.7,39.17497129]
[1765684650998,0.2781,3120.8,3120.7,38.69087129]
[1765684653502,0.2781,3120.8,3120.7,8.69087129]
[1765684653694,0.2781,3120.8,3120.7,38.69087129]
[1765684653907,0.2781,3120.8,3120.7,38.69090472]
[1765684654613,0.2781,3120.8,3120.7,48.69090472]
[1765684654780,0.2781,3120.8,3120.7,38.69090472]
[1765684655605,0.2781,3120.8,3120.7,48.69090472]
[1765684655906,0.2781,3120.8,3120.7,38.69090472]
[1765684656606,0.2781,3120.8,3120.7,48.69090472]
[1765684656810,0.2781,3120.8,3120.7,38.69090472]
[1765684658908,0.001,3120.8,3120.7,38.69090472]
[1765684659080,0.001,3120.8,3120.7,39.16500472]
[1765684661814,0.001,3120.8,3120.7,38.69090472]
[1765684663794,0.001,3120.8,3120.7,8.69090472]
[1765684663995,0.001,3120.8,3120.7,38.69090472]
[1765684666922,0.2781,3120.8,3120.7,33.91317417]
[1765684667209,0.7428,3120.8,3120.7,2.88028962]
[1765684669208,0.7428,3120.8,3120.7,0.12828962]
[1765684673713,0.7428,3120.8,3120.7,3.33269888]
[1765684682327,0.2781,3120.8,3120.7,3.33269888]
[1765684682627,0.2781,3120.8,3120.7,7.64675192]
[1765684683395,0.001,3120.8,3120.7,8.13565192]
[1765684683600,0.2494,3120.8,3120.7,7.64675192]
[1765684685434,0.7425,3120.8,3120.7,7.64675192]
[1765684690140,0.7425,3120.8,3120.7,3.33269888]
[1765684693534,0.2494,3120.8,3120.7,3.33269888]
[1765684694036,0.7425,3120.8,3120.7,3.33269888]
[1765684696337,0.2494,3120.8,3120.7,3.33269888]
[1765684697138,0.7425,3120.8,3120.7,3.33269888]
[1765684698439,0.2494,3120.8,3120.7,3.33269888]
[1765684699841,0.7425,3120.8,3120.7,3.33269888]
[1765684709323,0.2494,3120.8,3120.7,3.33269888]
[1765684710652,0.7059,3120.8,3120.7,3.33269888]
[1765684718363,0.2494,3120.8,3120.7,3.33269888]
[1765684718561,0.2494,3120.8,3120.7,0.12828962]
[1765684718936,0.7059,3120.8,3120.7,0.12828962]
[1765684719235,0.7059,3120.8,3120.7,3.33269888]
[1765684719769,0.2494,3120.8,3120.7,3.33269888]
[1765684722072,0.7059,3120.8,3120.7,3.33269888]
[1765684724579,0.2494,3120.8,3120.7,3.33269888]
[1765684736385,0.7053,3120.8,3120.7,3.33269888]
[1765684737802,0.7053,3120.8,3120.7,3.20440926]
[1765684739604,0.7053,3120.8,3120.6,0.58047529]
[1765684740897,0.7053,3120.8,3120.7,3.20440926]
[1765684741101,0.7053,3120.8,3120.7,3.68510926]
[1765684741102,0.001,3120.8,3120.7,3.68510926]
[1765684741402,0.001,3120.8,3120.7,4.15670926]
[1765684742179,0.001,3120.8,3120.7,3.68510926]
[1765684743406,0.7429,3120.8,3120.6,3.33276608]
[1765684743607,0.0045,3120.7,3120.5,0.002]
[1765684743780,0.7407,3120.6,3120.5,0.002]
[1765684748404,0.001,3120.8,3120.5,0.4827]
[1765684748610,0.001,3120.8,3120.5,0.9543]
[1765684750012,0.001,3120.8,3120.5,0.4827]
[1765684750412,0.4569,3120.8,3120.5,0.4827]
[1765684752199,0.4569,3120.8,3120.5,3.68730674]
[1765684754019,0.4569,3120.8,3120.5,0.4827]
[1765684754217,0.82310137,3120.8,3120.5,0.4827]
[1765684757716,0.82310137,3120.8,3120.5,3.687304]
[1765684758020,0.4569,3120.8,3120.5,3.687304]
[1765684758314,0.001,3120.8,3120.5,3.687304]
[1765684758520,0.001,3120.8,3120.7,0.4807]
[1765684759618,0.001,3120.8,3120.7,3.68510926]
[1765684759918,0.001,3120.8,3120.7,0.4807]
[1765684764330,0.4793,3120.8,3120.5,3.66246887]
[1765684764647,0.4793,3120.8,3120.5,4.13266887]
[1765684766507,0.4793,3120.8,3120.5,3.67676887]
[1765684767430,0.4793,3120.8,3120.5,0.002]
[1765684767744,0.0027,3120.6,3120.5,3.20661241]
[1765684768526,0.0027,3120.6,3120.5,3.47201241]
[1765684768712,0.0027,3120.6,3120.5,0.2674]
[1765684769628,0.0027,3120.6,3120.5,0.002]
[1765684771233,0.0037,3120.6,3120.5,0.002]
[1765684772435,0.4628,3120.6,3120.5,0.002]
[1765684773537,0.0037,3120.6,3120.5,0.002]
[1765684773837,0.4628,3120.6,3120.5,0.002]
[1765684775634,0.0037,3120.6,3120.5,0.002]
[1765684775831,0.4628,3120.6,3120.5,0.002]
[1765684778446,0.0037,3120.6,3120.5,0.002]
[1765684779613,0.001,3120.6,3120.5,0.9193]
[1765684780844,0.001,3120.6,3120.5,0.4568]
[1765684783853,0.7429,3120.6,3120.5,0.002]
[1765684790250,0.2855,3120.6,3120.5,0.002]
[1765684790433,0.001,3120.6,3120.5,0.9193]
[1765684791554,0.001,3120.6,3120.5,0.4568]
[1765684795255,0.2855,3120.6,3120.5,0.002]
[1765684796152,0.001,3120.6,3120.5,0.002]
[1765684796331,0.001,3120.6,3120.5,0.5004]
[1765684796957,0.001,3120.6,3120.5,0.002]
[1765684797258,0.2872,3120.6,3120.5,0.002]
[1765684798358,0.001,3120.6,3120.5,0.5004]
[1765684798563,0.001,3120.6,3120.5,0.9974]
[1765684799360,0.001,3120.6,3120.5,0.5004]
[1765684803842,0.4665,3120.6,3120.5,0.002]
[1765684805070,0.7446,3120.6,3120.5,0.002]
[1765684805770,0.001,3120.6,3120.5,30.5004]
[1765684806070,0.4665,3120.6,3120.5,0.002]
[1765684807274,0.001,3120.6,3120.5,0.002]
[1765684807578,0.001,3120.6,3120.5,0.5004]
[1765684810973,0.2535,3120.6,3120.5,0.002]
[1765684811357,0.7426,3120.6,3120.5,0.002]
[1765684813679,0.2535,3120.6,3120.5,0.002]
[1765684825583,0.001,3120.6,3120.5,0.002]
[1765684826184,0.001,3120.6,3120.5,0.4696]
[1765684826490,0.001,3120.6,3120.5,3.06819897]
[1765684826887,0.001,3120.6,3120.5,3.19650011]
[1765684827693,0.001,3120.6,3120.5,6.40111475]
[1765684828794,0.001,3120.6,3120.5,46.40111475]
[1765684829092,0.001,3120.6,3120.5,36.40111475]
[1765684829288,0.001,3120.6,3120.5,36.98159004]
[1765684833598,0.001,3120.6,3120.5,17.49359004]
[1765684833902,0.001,3120.6,3120.5,18.31574613]
[1765684834898,0.001,3120.6,3120.5,13.49174613]
[1765684837915,0.001,3120.6,3120.5,9.17699107]
[1765684841214,0.001,3120.6,3120.5,9.65599107]
[1765684846419,0.001,3120.6,3120.5,13.96960693]
[1765684850305,0.001,3120.6,3120.5,16.05822108]
[1765684852725,0.001,3120.6,3120.5,15.57922108]
[1765684853027,0.001,3120.6,3120.5,41.26422108]
[1765684855122,0.001,3120.6,3120.5,36.95060522]
[1765684855333,0.001,3120.6,3120.5,41.26422108]
[1765684856903,0.001,3120.6,3120.5,11.26422108]
[1765684857129,0.001,3120.6,3120.5,41.26422108]
[1765684860436,0.001,3120.6,3120.5,39.17560693]
[1765684862036,0.001,3120.6,3120.5,43.89472679]
[1765684862335,0.001,3120.8,3120.7,30.58047529]
[1765684862634,0.001,3120.8,3120.7,31.05627529]
[1765684862938,0.001,3120.8,3120.7,31.68365833]
[1765684863123,0.001,3120.8,3120.7,34.89326146]
[1765684863322,0.2667,3120.8,3120.7,10.48975833]
[1765684863531,0.7427,3120.8,3120.7,16.83475833]
[1765684864030,0.7427,3120.8,3120.7,13.91316759]
[1765684864229,0.7427,3120.8,3120.5,3.20655521]
[1765684864430,0.0048,3120.6,3120.5,33.7870305]
[1765684864841,0.0048,3120.6,3120.5,34.2651305]
[1765684866135,0.0048,3120.6,3120.5,0.002]
[1765684866136,0.4829,3120.6,3120.5,0.002]
[1765684866309,0.961,3120.6,3120.5,0.002]
[1765684866634,4.46485587,3120.6,3120.5,0.002]
[1765684866838,4.91144146,3120.6,3120.5,0.002]
[1765684867736,4.90759598,3120.6,3120.5,0.002]
[1765684868514,4.90859598,3120.6,3120.5,0.002]
[1765684873246,4.60925206,3120.6,3120.5,0.002]
[1765684874153,4.90807903,3120.6,3120.5,0.002]
[1765684876021,5.41307903,3120.6,3120.5,0.002]
[1765684877227,5.11425206,3120.6,3120.5,0.002]
[1765684880246,5.41286454,3120.6,3120.5,0.002]
[1765684882647,10.09439891,3120.6,3120.5,0.002]
[1765684884344,10.77116229,3120.6,3120.5,0.002]
[1765684890852,10.77082868,3120.6,3120.5,0.002]
[1765684893731,10.29272868,3120.6,3120.5,0.002]
[1765684893940,10.64684059,3120.6,3120.5,0.002]
[1765684896739,10.14184059,3120.6,3120.5,0.002]
[1765684896940,10.64684059,3120.6,3120.5,0.002]
[1765684897961,10.64738884,3120.6,3120.5,0.002]
[1765684902662,10.14238884,3120.6,3120.5,0.002]
[1765684902865,10.19698884,3120.6,3120.5,0.002]
[1765684903465,10.64738884,3120.6,3120.5,0.002]
[1765684903667,5.96585447,3120.6,3120.5,0.002]
[1765684904077,5.01045447,3120.6,3120.5,0.002]
[1765684904389,5.51545447,3120.6,3120.5,0.002]
[1765684904673,5.46085447,3120.6,3120.5,0.002]
[1765684904868,5.51545447,3120.6,3120.5,0.002]
[1765684905054,5.51564885,3120.6,3120.5,0.002]
[1765684905678,4.56310874,3120.6,3120.5,0.4535]
[1765684905846,5.06810874,3120.6,3120.5,0.9213]
[1765684906473,5.06810874,3120.6,3120.5,0.4535]
[1765684907769,5.35360874,3120.6,3120.5,0.002]
[1765684909883,4.84860874,3120.6,3120.5,0.002]
[1765684910083,6.52432478,3120.6,3120.5,0.002]
[1765684914781,5.15334949,3120.6,3120.5,0.4535]
[1765684915081,4.00953345,3120.6,3120.5,0.9213]
[1765684915659,0.3000215,3120.6,3120.5,0.4535]
[1765684915856,4.00953345,3120.6,3120.5,0.9055]
[1765684916052,0.3000215,3120.6,3120.5,1.42787419]
[1765684916456,0.001,3120.6,3120.5,8.94873075]
[1765684916649,0.001,3120.6,3120.5,38.94873075]
[1765684916854,0.001,3120.6,3120.5,43.25842921]
[1765684917059,0.001,3120.6,3120.5,43.76342921]
[1765684917391,0.001,3120.6,3120.5,44.16893321]
[1765684917987,0.001,3120.6,3120.5,15.26893321]
[1765684918195,0.001,3120.6,3120.5,45.26893321]
[1765684918966,0.001,3120.6,3120.5,14.86342921]
[1765684919166,0.001,3120.6,3120.5,44.86342921]
[1765684930109,0.001,3120.6,3120.5,30.86242921]
[1765684930319,0.001,3120.6,3120.5,44.86342921]
[1765684934714,0.001,3120.6,3120.5,44.41142921]
[1765684935010,0.001,3120.6,3120.5,33.91842921]
[1765684935198,0.001,3120.6,3120.5,34.37042921]
[1765684935398,0.001,3120.6,3120.5,44.86342921]
[1765684939426,0.001,3120.6,3120.5,14.86342921]
[1765684939730,0.001,3120.6,3120.5,44.86342921]
[1765684941814,0.001,3120.6,3120.5,45.86342921]
[1765684945630,0.001,3121.0,3120.6,0.405504]
[1765684945798,0.001,3121.0,3120.9,39.11134038]
[1765684945997,0.001,3121.0,3120.9,39.61634038]
[1765684946199,0.001,3121.0,3120.9,40.07214038]
[1765684946725,0.001,3121.0,3120.9,43.27634429]
[1765684948710,0.001,3121.0,3120.9,38.9875741]
[1765684948914,0.001,3121.0,3120.9,41.42017723]
[1765684949334,0.001,3121.0,3120.9,41.90017723]
[1765684950035,0.001,3121.0,3120.9,42.19717723]
[1765684951142,0.001,3121.0,3120.9,41.71717723]
[1765684953018,0.001,3121.0,3120.9,11.71717723]
[1765684953219,0.001,3121.0,3120.9,48.5075741]
[1765684953420,0.001,3121.0,3120.9,38.5063542]
[1765684953751,0.001,3121.0,3120.9,38.9863542]
[1765684955042,0.001,3121.0,3120.9,8.9863542]
[1765684955237,0.001,3121.0,3120.9,38.9863542]
[1765684955430,0.001,3121.0,3120.9,42.19595733]
[1765684958038,0.001,3121.0,3120.9,12.19595733]
[1765684958242,0.001,3121.0,3120.9,38.9863542]
[1765684960130,0.001,3121.0,3120.9,8.9863542]
[1765684960337,0.001,3121.0,3120.9,38.9863542]
[1765684961949,0.001,3121.0,3120.9,38.98626443]
[1765684962242,0.001,3121.0,3120.9,22.08026443]
[1765684962427,0.471,3121.0,3120.9,17.81326443]
[1765684962744,0.471,3121.0,3120.9,15.06586443]
[1765684962943,0.471,3121.0,3120.9,11.86166052]
[1765684963145,0.746,3121.0,3120.9,12.65586443]
[1765684963441,0.746,3121.0,3120.9,12.65386443]
[1765684964329,0.746,3121.0,3120.9,22.64386443]
[1765684964942,0.471,3121.0,3120.9,16.92686443]
[1765684965248,0.001,3121.0,3120.9,38.50196443]
[1765684965447,0.001,3121.0,3120.9,38.98196443]
[1765684965834,0.001,3121.0,3120.9,38.50196443]
[1765684966029,0.001,3121.0,3120.9,42.19156756]
[1765684967030,0.746,3121.0,3120.9,13.15386443]
[1765684971336,0.471,3121.0,3120.9,13.15386443]
[1765684973054,0.001,3121.0,3120.9,13.15386443]
[1765684981551,0.469,3121.0,3120.9,13.15386443]
[1765684982144,0.001,3121.0,3120.9,13.61816443]
[1765684983860,0.001,3121.0,3120.9,13.15386443]
[1765684987483,0.001,3121.0,3120.9,13.61816443]
[1765684987775,0.001,3121.0,3120.9,14.08096443]
[1765684988690,0.001,3121.0,3120.9,14.08116608]
[1765684988890,0.001,3121.0,3120.9,38.48536608]
[1765684989052,0.001,3121.0,3120.9,42.15776921]
[1765684989962,0.001,3121.0,3120.9,43.25776921]
[1765684992389,0.001,3121.0,3120.9,40.04816608]
[1765684995386,0.4732,3121.0,3120.9,24.82406608]
[1765684995588,0.746,3121.0,3120.9,24.82406608]
[1765684995884,0.4732,3121.0,3120.9,24.82406608]
[1765684996386,0.4732,3121.0,3120.9,23.72406608]
[1765684998060,0.4732,3121.0,3120.9,10.33306608]
[1765684998061,0.746,3121.0,3120.9,10.33306608]
[1765684999062,0.746,3121.0,3120.9,17.12886217]
[1765685000287,0.746,3121.0,3120.9,10.33306608]
[1765685001470,0.746,3121.0,3120.9,17.12886217]
[1765685002495,0.746,3121.0,3120.9,19.82806608]
[1765685002690,0.746,3121.0,3120.9,9.82806608]
[1765685002890,0.746,3121.0,3120.9,16.62386217]
[1765685003794,0.746,3121.0,3120.9,6.62386217]
[1765685003999,0.4732,3121.0,3120.8,10.002]
[1765685004169,0.78276991,3120.9,3120.8,0.002]
[1765685004369,0.78264591,3120.9,3120.8,4.31386217]
[1765685005372,0.4828,3120.9,3120.8,4.31386217]
[1765685005684,0.001,3121.0,3120.8,4.79216217]
[1765685005885,0.001,3121.0,3120.9,30.9441]
[1765685006795,0.001,3121.0,3120.9,34.14830391]
[1765685013201,0.001,3121.0,3120.9,33.68250391]
[1765685013400,0.746,3121.0,3120.8,0.002]
[1765685013704,0.0028,3120.9,3120.8,33.20630658]
[1765685014677,0.4929,3120.9,3120.8,30.002]
[1765685020210,0.4929,3120.9,3120.8,21.935]
[1765685020900,0.4929,3120.9,3120.8,25.13930658]
[1765685021112,0.0028,3120.9,3120.8,25.13930658]
[1765685021897,0.0028,3120.9,3120.8,21.935]
[1765685023914,0.0028,3120.9,3120.8,26.24773526]
[1765685025593,0.4929,3120.9,3120.8,4.31473526]
[1765685028021,0.4939,3120.9,3120.8,4.31473526]
[1765685035425,0.0038,3120.9,3120.8,4.31473526]
[1765685035735,0.4727,3120.9,3120.8,4.31473526]
[1765685036109,0.001,3120.9,3120.8,4.31473526]
[1765685041431,0.001,3120.9,3120.8,4.79113526]
[1765685041823,0.001,3120.9,3120.8,4.31473526]
[1765685043445,0.30101726,3120.9,3120.8,4.31473526]
[1765685045627,0.30101726,3120.9,3120.8,4.79113526]
[1765685046940,0.30101726,3120.9,3120.8,0.4784]
[1765685047310,0.30101726,3120.9,3120.8,4.79113526]
[1765685050028,0.30101536,3120.9,3120.8,4.79113526]
[1765685051412,0.001,3120.9,3120.8,43.2755771]
[1765685051619,0.001,3120.9,3120.8,39.43174184]
[1765685059055,0.001,3120.9,3120.8,39.43060368]
[1765685059636,0.001,3120.9,3120.8,9.43060368]
[1765685059829,0.001,3120.9,3120.8,39.43060368]
[1765685060137,0.001,3120.9,3120.8,42.64020681]
[1765685060324,0.001,3120.9,3120.8,47.9377832]
[1765685061434,0.001,3120.9,3120.8,43.6261861]
[1765685062728,0.001,3120.9,3120.8,42.7582821]
[1765685063265,0.001,3120.9,3120.8,43.2206821]
[1765685066560,0.001,3120.9,3120.8,42.7582821]
[1765685070866,0.001,3120.9,3120.8,12.7582821]
[1765685071070,0.001,3120.9,3120.8,42.7582821]
[1765685072865,0.4715,3120.9,3120.8,42.2818821]
[1765685075674,0.4715,3120.9,3120.8,41.8758821]
[1765685075966,0.4715,3120.9,3120.8,42.2818821]
[1765685076971,0.4715,3120.9,3120.8,12.2818821]
[1765685077178,0.4715,3120.9,3120.8,42.2818821]
[1765685077554,0.001,3120.9,3120.8,42.7511821]
[1765685083071,0.001,3120.9,3120.8,12.7511821]
[1765685083280,0.001,3120.9,3120.8,42.7511821]
[1765685083881,0.001,3120.9,3120.8,42.75143987]
[1765685084084,0.001,3120.9,3120.8,12.75143987]
[1765685084276,0.001,3120.9,3120.8,39.54183674]
[1765685090198,0.001,3120.9,3120.8,40.00663674]
[1765685090487,0.001,3120.9,3120.8,41.10663674]
[1765685090891,0.001,3120.9,3120.8,40.64183674]
[1765685091290,0.001,3120.9,3120.8,41.10663674]
[1765685091495,0.001,3120.9,3120.8,44.31623987]
[1765685092266,0.001,3120.9,3120.8,14.72174387]
[1765685092466,0.001,3120.9,3120.8,44.72174387]
[1765685094366,0.001,3120.9,3120.8,14.72067087]
[1765685094592,0.001,3120.9,3120.8,44.72067087]
[1765685098413,0.001,3120.9,3120.8,14.72067087]
[1765685098709,0.001,3120.9,3120.8,44.72067087]
[1765685100527,0.001,3120.9,3120.8,14.72067087]
[1765685100707,0.001,3120.9,3120.8,44.72067087]
[1765685107630,0.001,3120.9,3120.8,14.72067087]
[1765685107834,0.001,3120.9,3120.8,44.72067087]
[1765685111920,0.001,3120.9,3120.8,14.72067087]
[1765685112126,0.001,3120.9,3120.8,44.72067087]
[1765685113451,0.001,3121.2,3121.1,39.60754303]
[1765685113629,0.001,3121.4,3121.3,30.98597929]
[1765685113815,0.001,3121.4,3121.3,1.95907929]
[1765685114022,0.001,3121.4,3121.3,32.54852572]
[1765685115049,0.001,3121.4,3121.3,35.75231901]
[1765685115243,0.001,3121.4,3121.3,35.29111901]
[1765685115447,0.001,3121.4,3121.3,38.96192214]
[1765685115616,0.001,3121.9,3121.4,31.91527929]
[1765685115817,0.001,3121.9,3121.5,40.07564303]
[1765685116040,0.001,3121.9,3121.5,40.53684303]
[1765685116240,0.001,3121.9,3121.5,40.66508453]
[1765685116521,0.001,3121.9,3121.5,42.10343308]
[1765685116936,0.001,3121.9,3121.5,45.30702109]
[1765685118543,0.001,3121.9,3121.5,48.0494091]
[1765685118720,0.001,3121.9,3121.7,31.45407929]
[1765685118920,0.001,3121.9,3121.7,35.16246206]
[1765685119121,0.001,3121.9,3121.7,38.96149436]
[1765685120541,0.001,3121.9,3121.7,38.50029436]
[1765685121641,0.2835,3121.8,3121.7,38.50029436]
[1765685122045,0.001,3121.8,3121.7,38.50029436]
[1765685123827,0.001,3121.8,3121.7,38.96149436]
[1765685124027,0.001,3121.8,3121.7,8.96149436]
[1765685124249,0.001,3121.8,3121.7,38.96149436]
[1765685128960,0.001,3122.1,3122.0,40.98597929]
[1765685129249,0.001,3122.1,3122.0,7.88355737]
[1765685129468,0.001,3122.1,3122.0,38.35695737]
[1765685129647,0.001,3122.1,3122.0,38.48517832]
[1765685129854,0.001,3122.1,3122.0,47.099937]
[1765685133236,0.001,3122.1,3122.0,17.099937]
[1765685133443,0.001,3122.1,3122.0,47.099937]
[1765685135967,0.001,3122.1,3122.0,46.626537]
[1765685136136,0.001,3122.1,3122.0,47.099937]
[1765685142475,0.001,3122.1,3122.0,46.626537]
[1765685143180,0.001,3122.1,3122.0,47.099937]
[1765685144453,0.001,3122.1,3122.0,17.099937]
[1765685144653,0.001,3122.1,3122.0,47.099937]
[1765685144980,0.001,3122.2,3122.1,30.0]
[1765685145169,0.001,3122.2,3122.1,35.84648242]
[1765685145554,0.001,3122.2,3122.1,39.17764859]
[1765685145957,0.001,3122.2,3122.1,47.79032093]
[1765685152386,0.001,3122.2,3122.1,48.89032093]
[1765685157091,0.001,3122.2,3122.1,48.22832093]
[1765685157789,0.001,3122.2,3122.1,18.22832093]
[1765685157990,0.001,3122.2,3122.1,48.22832093]
[1765685161817,0.001,3122.2,3122.1,48.68442093]
[1765685163896,0.001,3122.2,3122.1,18.68442093]
[1765685164200,0.001,3122.2,3122.1,48.68442093]
[1765685164873,0.001,3122.2,3122.1,22.99160124]
[1765685165123,0.001,3122.2,3122.1,52.99160124]
[1765685171906,0.2663,3122.2,3122.1,52.05060124]
[1765685172077,0.2663,3122.2,3122.1,43.4379289]
[1765685172688,0.001,3122.2,3122.1,43.4379289]
[1765685173177,0.001,3122.2,3122.1,43.9291289]
[1765685173575,0.001,3122.2,3122.1,44.3852289]
[1765685185422,0.001,3122.2,3122.1,14.3852289]
[1765685185725,0.001,3122.2,3122.1,44.3852289]
[1765685186331,0.001,3122.2,3122.1,43.9291289]
[1765685186528,0.001,3122.2,3122.1,13.9291289]
[1765685186828,0.001,3122.2,3122.1,43.9291289]
[1765685187925,0.001,3122.2,3122.1,44.4048289]
[1765685189625,0.001,3122.2,3122.1,14.4048289]
[1765685189925,0.001,3122.2,3122.1,44.4048289]
[1765685192726,0.001,3122.2,3122.1,14.4048289]
[1765685192926,0.001,3122.2,3122.1,44.4048289]
[1765685195952,0.001,3122.2,3122.1,43.9291289]
[1765685196100,0.4895,3122.2,3122.1,43.4379289]
[1765685198933,0.4895,3122.2,3122.1,9.13074859]
[1765685199132,0.4895,3122.2,3122.1,40.22832577]
[1765685199133,0.7429,3122.2,3122.1,40.22832577]
[1765685200036,0.7429,3122.2,3122.1,40.22966738]
[1765685203740,0.7429,3122.2,3122.1,35.92114546]
[1765685205018,0.7429,3122.2,3122.1,35.51564146]
[1765685205224,0.7429,3122.2,3122.1,13.93364146]
[1765685205421,0.7429,3122.2,3122.1,10.73066911]
[1765685205628,0.7429,3122.2,3122.1,0.12819382]
[1765685205941,4.34042972,3122.2,3122.1,0.12819382]
[1765685206314,4.34042972,3122.2,3122.0,0.002]
[1765685206549,0.47,3122.1,3122.0,0.002]
[1765685212860,3.67297235,3122.1,3122.0,0.002]
[1765685216865,4.25544764,3122.1,3122.0,0.002]
[1765685217051,5.09134466,3122.1,3122.0,0.002]
[1765685217569,5.59634466,3122.1,3122.0,0.002]
[1765685218148,10.27787903,3122.1,3122.0,0.002]
[1765685221170,9.77287903,3122.1,3122.0,0.002]
[1765685221339,10.27887903,3122.1,3122.0,0.002]
[1765685223664,9.77387903,3122.1,3122.0,0.002]
[1765685223842,10.27887903,3122.1,3122.0,0.002]
[1765685228353,9.77387903,3122.1,3122.0,0.002]
[1765685228671,10.27887903,3122.1,3122.0,0.002]
[1765685231164,10.57780851,3122.1,3122.0,0.002]
[1765685233756,10.07280851,3122.1,3122.0,0.002]
[1765685233943,10.57780851,3122.1,3122.0,0.002]
[1765685236354,11.1582838,3122.1,3122.0,0.002]
[1765685237348,15.47095105,3122.1,3122.0,0.002]
[1765685238875,11.1582838,3122.1,3122.0,0.002]
[1765685239047,15.47095105,3122.1,3122.0,0.002]
[1765685239253,15.87645505,3122.1,3122.0,0.002]
[1765685244866,11.5637878,3122.1,3122.0,0.002]
[1765685248390,14.9387878,3122.1,3122.0,0.002]
[1765685249496,14.4337878,3122.1,3122.0,0.002]
[1765685249696,14.9387878,3122.1,3122.0,0.002]
[1765685257283,14.93890979,3122.1,3122.0,0.002]